fUSD/lending_fUSD_20250219
["ID","MTS","AMOUNT","RATE_DAILY","PERIOD"]
[353607180,1739957076516,-5296.1,0.0001452,2]
[353607181,1739957076548,-2043.27,0.0001452,2]
[353607182,1739957076581,-1534.33,0.0001452,2]
[353607183,1739957076612,-500.0,0.0001452,2]
[353607184,1739957076645,-647.07,0.0001452,2]
[353607185,1739957076678,-500.0,0.0001452,2]
[353607186,1739957076711,-738.28,0.0001452,2]
[353607187,1739957076743,-500.0,0.0001452,2]
[353607188,1739957076774,-1051.18,0.0001452,2]
[353607189,1739957076807,-1093.24,0.0001452,2]
[353607190,1739957076840,-500.0,0.0001452,2]
[353607191,1739957076873,-1295.32,0.0001452,2]
[353607192,1739957076907,-2278.72,0.0001452,2]
[353607193,1739957076943,-644.90383833,0.0001452,2]
[353607194,1739957077158,-1455.08,0.0001452,2]
[353607195,1739957077194,-500.0,0.0001452,2]
[353607196,1739957077228,-500.0,0.0001452,2]
[353607197,1739957077261,-572.16,0.0001452,2]
[353607198,1739957077298,-929.06,0.0001452,2]
[353607199,1739957077333,-1119.05,0.0001452,2]
[353607200,1739957077369,-967.27,0.0001452,2]
[353607201,1739957077402,-500.0,0.0001452,2]
[353607202,1739957077436,-500.0,0.0001452,2]
[353607203,1739957077472,-500.0,0.0001452,2]
[353607204,1739957077504,-770.13,0.0001452,2]
[353607205,1739957077537,-500.0,0.0001452,2]
[353607206,1739957077570,-4255.25,0.0001452,2]
[353607207,1739957077601,-500.0,0.0001452,2]
[353607208,1739957077633,-1120.64,0.0001452,2]
[353607209,1739957077665,-500.0,0.0001452,2]
[353607210,1739957077703,-500.0,0.0001452,2]
[353607211,1739957077734,-1021.92,0.0001452,2]
[353607212,1739957077767,-680.04,0.0001452,2]
[353607213,1739957077800,-500.0,0.0001452,2]
[353607214,1739957077833,-500.0,0.0001452,2]
[353607215,1739957077869,-1015.43,0.0001452,2]
[353607216,1739957077904,-502.91845334,0.0001452,2]
[353607217,1739957077940,-500.0,0.0001452,2]
[353607218,1739957077979,-500.0,0.0001452,2]
[353607219,1739957078014,-909.24,0.0001452,2]
[353607220,1739957078048,-500.0,0.0001452,2]
[353607221,1739957078085,-152.297437,0.0001452,2]
[353607222,1739957078119,-500.0,0.0001452,2]
[353607223,1739957078152,-494.0365912,0.0001452,2]
[353607224,1739957078185,-500.0,0.0001452,2]
[353607225,1739957078217,-1252.15,0.0001452,2]
[353607226,1739957078248,-500.0,0.0001452,2]
[353607227,1739957078280,-724.82,0.0001452,2]
[353607228,1739957078312,-604.92,0.0001452,2]
[353607229,1739957078346,-855.46,0.0001452,2]
[353607230,1739957078377,-155.81498,0.0001452,2]
[353607231,1739957078411,-500.0,0.0001452,2]
[353607232,1739957078443,-736.01,0.0001452,2]
[353607233,1739957078476,-1283.84,0.0001452,2]
[353607234,1739957078507,-500.0,0.0001452,2]
[353607235,1739957078537,-745.89,0.0001452,2]
[353607236,1739957078569,-1926.5,0.0001452,2]
[353607237,1739957078600,-1055.67,0.0001452,2]
[353607238,1739957078631,-627.81,0.0001452,2]
[353607239,1739957078662,-500.0,0.0001452,2]
[353607240,1739957078692,-776.57,0.0001452,2]
[353607241,1739957078723,-500.0,0.0001452,2]
[353607242,1739957078754,-733.08,0.0001452,2]
[353607243,1739957078790,-547.75,0.0001452,2]
[353607244,1739957078822,-500.0,0.0001452,2]
[353607245,1739957078854,-529.59,0.0001452,2]
[353607246,1739957078891,-4362.54,0.0001452,2]
[353607247,1739957078923,-507.4195748,0.0001452,2]
[353607248,1739957078958,-500.0,0.0001452,2]
[353607249,1739957078989,-500.0,0.0001452,2]
[353607250,1739957079023,-500.0,0.0001452,2]
[353607251,1739957079057,-691.67,0.0001452,2]
[353607252,1739957079092,-580.48,0.0001452,2]
[353607253,1739957079126,-1333.98,0.0001452,2]
[353607254,1739957079165,-2090.9,0.0001452,2]
[353607255,1739957079200,-823.1,0.0001452,2]
[353607256,1739957079235,-733.25,0.0001452,2]
[353607257,1739957079268,-552.5,0.0001452,2]
[353607258,1739957079303,-1331.05,0.0001452,2]
[353607259,1739957079338,-500.0,0.0001452,2]
[353607260,1739957079374,-1921.55,0.00014546,2]
[353607261,1739957079409,-500.0,0.00014602,2]
[353607262,1739957079445,-543.01,0.00014602,2]
[353607263,1739957079483,-634.82,0.00014602,2]
[353607264,1739957079519,-500.0,0.00014602,2]
[353607265,1739957079555,-541.04,0.00014602,2]
[353607266,1739957079589,-500.0,0.00014602,2]
[353607267,1739957079625,-725.34,0.00014602,2]
[353607268,1739957079663,-778.48,0.00014602,2]
[353607269,1739957079698,-500.0,0.00014602,2]
[353607270,1739957079732,-500.0,0.00014602,2]
[353607271,1739957079766,-633.81,0.00014602,2]
[353607272,1739957079800,-562.62,0.00014602,2]
[353607273,1739957079837,-844.44,0.00014602,2]
[353607274,1739957079872,-500.0,0.00014602,2]
[353607275,1739957079910,-500.0,0.00014602,2]
[353607276,1739957079948,-500.0,0.00014602,2]
[353607277,1739957079988,-722.42,0.00014602,2]
[353607278,1739957080027,-510.18,0.00014602,2]
[353607279,1739957080067,-650.55,0.00014602,2]
[353607280,1739957080105,-500.0,0.00014602,2]
[353607281,1739957080141,-500.0,0.00014602,2]
[353607282,1739957080174,-500.0,0.00014602,2]
[353607283,1739957080209,-1055.45,0.00014602,2]
[353607284,1739957080242,-500.0,0.00014602,2]
[353607285,1739957080277,-500.0,0.00014602,2]
[353607286,1739957080311,-691.51,0.00014602,2]
[353607287,1739957080345,-909.51,0.00014602,2]
[353607288,1739957080378,-500.0,0.00014602,2]
[353607289,1739957080413,-667.83,0.00014602,2]
[353607290,1739957080447,-500.0,0.00014602,2]
[353607291,1739957080480,-531.54,0.00014602,2]
[353607292,1739957080512,-647.18,0.00014602,2]
[353607293,1739957080544,-500.0,0.00014602,2]
[353607294,1739957080576,-500.0,0.00014602,2]
[353607295,1739957080608,-930.4,0.00014602,2]
[353607296,1739957080639,-500.0,0.00014602,2]
[353607297,1739957080671,-625.34,0.00014602,2]
[353607298,1739957080702,-515.28,0.00014602,2]
[353607299,1739957080734,-551.52,0.00014602,2]
[353607300,1739957080768,-500.0,0.00014602,2]
[353607301,1739957080801,-527.60267086,0.00014602,2]
[353607302,1739957080835,-500.0,0.00014602,2]
[353607303,1739957080872,-770.16,0.00014602,2]
[353607304,1739957080908,-500.0,0.00014602,2]
[353607305,1739957080944,-500.0,0.00014602,2]
[353607306,1739957080982,-500.0,0.00014602,2]
[353607307,1739957081017,-500.0,0.00014602,2]
[353607308,1739957081052,-500.0,0.00014602,2]
[353607309,1739957081088,-512.49,0.00014602,2]
[353607310,1739957081122,-533.08,0.00014602,2]
[353607311,1739957081155,-628.45,0.00014602,2]
[353607312,1739957081187,-743.05,0.00014602,2]
[353607313,1739957081219,-500.0,0.00014602,2]
[353607314,1739957081251,-1540.98,0.00014602,2]
[353607315,1739957081283,-545.22,0.00014602,2]
[353607316,1739957081317,-807.24,0.00014602,2]
[353607317,1739957081352,-514.11,0.00014602,2]
[353607318,1739957081396,-819.39,0.00014602,2]
[353607319,1739957081433,-572.21,0.00014602,2]
[353607320,1739957081468,-500.0,0.00014602,2]
[353607321,1739957081500,-649.94,0.00014602,2]
[353607322,1739957081536,-380.52585897,0.00014602,2]
[353607323,1739957081567,-500.0,0.00014602,2]
[353607324,1739957081599,-500.0,0.00014602,2]
[353607325,1739957081631,-1211.58,0.00014602,2]
[353607326,1739957081662,-1135.36,0.00014602,2]
[353607327,1739957081694,-500.0,0.00014602,2]
[353607328,1739957081727,-210.66228285,0.00014602,2]
[353607329,1739957081760,-722.48,0.00014602,2]
[353607330,1739957081794,-500.0,0.00014602,2]
[353607331,1739957081830,-1272.14,0.00014602,2]
[353607332,1739957081868,-500.0,0.00014602,2]
[353607333,1739957081905,-519.71047301,0.00014602,2]
[353607334,1739957081942,-712.89,0.00014602,2]
[353607335,1739957081977,-500.0,0.00014602,2]
[353607336,1739957082011,-500.0,0.00014602,2]
[353607337,1739957082047,-1233.72,0.00014602,2]
[353607338,1739957082081,-862.66,0.00014602,2]
[353607339,1739957082114,-740.17,0.00014602,2]
[353607340,1739957082147,-758.66,0.00014602,2]
[353607341,1739957082180,-500.0,0.00014602,2]
[353607342,1739957082212,-601.16,0.00014602,2]
[353607343,1739957082516,-689.44,0.00014602,2]
[353607344,1739957082556,-593.48,0.00014602,2]
[353607345,1739957082588,-500.0,0.00014602,2]
[353607346,1739957082622,-774.93,0.00014602,2]
[353607347,1739957082654,-500.0,0.00014602,2]
[353607348,1739957082688,-1397.033156,0.00014602,2]
[353607349,1739957082722,-500.0,0.00014602,2]
[353607350,1739957082757,-1325.26,0.00014602,2]
[353607351,1739957082792,-500.0,0.00014602,2]
[353607352,1739957082828,-500.0,0.00014602,2]
[353607353,1739957082863,-750.16,0.00014602,2]
[353607354,1739957082901,-500.0,0.00014602,2]
[353607355,1739957082939,-1394.43,0.00014602,2]
[353607356,1739957082976,-500.0,0.00014602,2]
[353607357,1739957083011,-500.0,0.00014602,2]
[353607358,1739957083045,-500.0,0.00014602,2]
[353607359,1739957083080,-638.51,0.00014602,2]
[353607360,1739957083114,-500.0,0.00014602,2]
[353607361,1739957083150,-500.0,0.00014602,2]
[353607362,1739957083185,-522.15945888,0.00014602,2]
[353607363,1739957083219,-500.0,0.00014602,2]
[353607364,1739957083253,-916.97,0.00014602,2]
[353607365,1739957083286,-500.0,0.00014602,2]
[353607366,1739957083322,-571.77,0.00014602,2]
[353607367,1739957083356,-500.0,0.00014602,2]
[353607368,1739957083390,-535.59,0.00014602,2]
[353607369,1739957083425,-543.64,0.00014602,2]
[353607370,1739957083460,-646.22,0.00014602,2]
[353607371,1739957083494,-1263.66,0.00014602,2]
[353607372,1739957083526,-865.23,0.00014602,2]
[353607373,1739957083558,-592.33,0.00014602,2]
[353607374,1739957083590,-1825.346312,0.00014602,2]
[353607375,1739957083623,-646.68,0.00014602,2]
[353607376,1739957083655,-597.97,0.00014602,2]
[353607377,1739957083686,-694.2,0.00014602,2]
[353607378,1739957083718,-500.0,0.00014602,2]
[353607379,1739957083751,-1174.15,0.00014602,2]
[353607380,1739957083783,-500.0,0.00014602,2]
[353607381,1739957083817,-878.0,0.00014602,2]
[353607382,1739957083851,-500.0,0.00014602,2]
[353607383,1739957083885,-825.52,0.00014602,2]
[353607384,1739957083920,-500.0,0.00014602,2]
[353607385,1739957083953,-500.0,0.00014602,2]
[353607386,1739957083987,-520.77196195,0.00014602,2]
[353607387,1739957084021,-500.0,0.00014602,2]
[353607388,1739957084056,-516.38,0.00014602,2]
[353607389,1739957084091,-500.0,0.00014602,2]
[353607390,1739957084126,-1264.71,0.00014602,2]
[353607391,1739957084160,-906.18,0.00014602,2]
[353607392,1739957084193,-500.0,0.00014602,2]
[353607393,1739957084225,-565.96,0.00014602,2]
[353607394,1739957084257,-500.0,0.00014602,2]
[353607395,1739957084290,-1121.54,0.00014602,2]
[353607396,1739957084324,-988.21,0.00014602,2]
[353607397,1739957084357,-500.0,0.00014602,2]
[353607398,1739957084391,-500.52,0.00014602,2]
[353607399,1739957084425,-500.0,0.00014602,2]
[353607400,1739957084459,-500.0,0.00014602,2]
[353607401,1739957084492,-579.84367576,0.00014602,2]
[353607402,1739957084525,-1126.66,0.00014602,2]
[353607403,1739957084557,-628.69,0.00014602,2]
[353607404,1739957084589,-500.0,0.00014602,2]
[353607405,1739957084621,-500.0,0.00014602,2]
[353607406,1739957084653,-500.0,0.00014602,2]
[353607407,1739957084686,-883.27,0.00014602,2]
[353607408,1739957084722,-777.31,0.00014602,2]
[353607409,1739957084756,-500.0,0.00014602,2]
[353607410,1739957084791,-601.15,0.00014602,2]
[353607411,1739957084825,-500.0,0.00014602,2]
[353607412,1739957084859,-653.11,0.00014602,2]
[353607413,1739957084897,-777.33,0.00014602,2]
[353607414,1739957084932,-500.0,0.00014602,2]
[353607415,1739957084969,-523.08,0.00014602,2]
[353607416,1739957085003,-1044.61,0.00014602,2]
[353607417,1739957085037,-712.57,0.00014602,2]
[353607418,1739957085070,-540.46,0.00014602,2]
[353607419,1739957085104,-777.07,0.00014602,2]
[353607420,1739957085136,-687.05,0.00014602,2]
[353607421,1739957085168,-500.0,0.00014602,2]
[353607422,1739957085201,-879.81,0.00014602,2]
[353607423,1739957085236,-500.0,0.00014602,2]
[353607424,1739957085270,-525.83,0.00014602,2]
[353607425,1739957085304,-625.39,0.00014602,2]
[353607426,1739957085341,-888.05,0.00014602,2]
[353607427,1739957085376,-787.18,0.00014602,2]
[353607428,1739957085410,-511.63984345,0.00014602,2]
[353607429,1739957085442,-781.66,0.00014602,2]
[353607430,1739957085476,-532.61,0.00014602,2]
[353607431,1739957085510,-596.76,0.00014602,2]
[353607432,1739957085543,-536.22,0.00014602,2]
[353607433,1739957085578,-500.0,0.00014602,2]
[353607434,1739957085610,-481.02423042,0.00014602,2]
[353607435,1739957085643,-914.58,0.00014602,2]
[353607436,1739957085678,-500.0,0.00014602,2]
[353607437,1739957085715,-500.0,0.00014602,2]
[353607438,1739957085748,-657.0,0.00014602,2]
[353607439,1739957085782,-727.68,0.00014602,2]
[353607440,1739957085815,-1554.06,0.00014602,2]
[353607441,1739957085848,-594.44,0.00014602,2]
[353607442,1739957085881,-1286.14,0.00014602,2]
[353607443,1739957085918,-539.19,0.00014602,2]
[353607444,1739957085950,-731.14,0.00014602,2]
[353607445,1739957085984,-523.74,0.00014602,2]
[353607446,1739957086015,-500.0,0.00014602,2]
[353607447,1739957086051,-1494.76,0.00014602,2]
[353607448,1739957086085,-500.0,0.00014602,2]
[353607449,1739957086121,-500.0,0.00014602,2]
[353607450,1739957086154,-656.29,0.00014602,2]
[353607451,1739957086190,-500.0,0.00014602,2]
[353607452,1739957086222,-500.0,0.00014602,2]
[353607453,1739957086254,-1380.28,0.00014602,2]
[353607454,1739957086286,-522.31305117,0.00014602,2]
[353607455,1739957086319,-500.0,0.00014602,2]
[353607456,1739957086352,-500.0,0.00014602,2]
[353607457,1739957086384,-500.0,0.00014602,2]
[353607458,1739957086416,-1469.68,0.00014602,2]
[353607459,1739957086448,-500.0,0.00014602,2]
[353607460,1739957086483,-500.0,0.00014602,2]
[353607461,1739957086514,-1629.48,0.00014602,2]
[353607462,1739957086546,-500.0,0.00014602,2]
[353607463,1739957086578,-506.69,0.00014602,2]
[353607464,1739957086610,-500.0,0.00014602,2]
[353607465,1739957086642,-1643.27,0.00014602,2]
[353607466,1739957086673,-500.0,0.00014602,2]
[353607467,1739957086704,-500.07,0.00014602,2]
[353607468,1739957086736,-1374.04,0.00014602,2]
[353607469,1739957086768,-500.0,0.00014602,2]
[353607470,1739957086802,-500.0,0.00014602,2]
[353607471,1739957086835,-2880.46,0.00014602,2]
[353607472,1739957086869,-500.0,0.00014602,2]
[353607473,1739957086902,-500.0,0.00014602,2]
[353607474,1739957086936,-500.0,0.00014602,2]
[353607475,1739957086971,-708.89,0.00014602,2]
[353607476,1739957087003,-1303.36,0.00014602,2]
[353607477,1739957087034,-500.0,0.00014602,2]
[353607478,1739957087064,-500.0,0.00014602,2]
[353607479,1739957087093,-626.2,0.00014602,2]
[353607480,1739957087123,-500.0,0.00014602,2]
[353607481,1739957087152,-500.0,0.00014602,2]
[353607482,1739957087182,-691.7,0.00014602,2]
[353607483,1739957087211,-500.0,0.00014602,2]
[353607484,1739957087241,-598.12,0.00014602,2]
[353607485,1739957087270,-500.0,0.00014602,2]
[353607486,1739957087302,-475.36964354,0.00014602,2]
[353607487,1739957087332,-500.0,0.00014602,2]
[353607488,1739957087363,-1590.92,0.00014602,2]
[353607489,1739957087393,-629.55,0.00014602,2]
[353607490,1739957087423,-956.27,0.00014602,2]
[353607491,1739957087454,-500.0,0.00014602,2]
[353607492,1739957087790,-500.89,0.00014602,2]
[353607493,1739957087825,-500.0,0.00014602,2]
[353607494,1739957087860,-848.21,0.00014602,2]
[353607495,1739957087901,-500.0,0.00014602,2]
[353607496,1739957087937,-998.89,0.00014602,2]
[353607497,1739957087972,-782.0,0.00014602,2]
[353607498,1739957088004,-500.0,0.00014602,2]
[353607499,1739957088037,-500.0,0.00014602,2]
[353607500,1739957088070,-840.54,0.00014602,2]
[353607501,1739957088104,-500.0,0.00014602,2]
[353607502,1739957088137,-632.82,0.00014602,2]
[353607503,1739957088170,-1192.42,0.00014602,2]
[353607504,1739957088202,-500.0,0.00014602,2]
[353607505,1739957088234,-500.0,0.00014602,2]
[353607506,1739957088265,-657.73,0.00014602,2]
[353607507,1739957088297,-500.0,0.00014602,2]
[353607508,1739957088331,-825.98,0.00014602,2]
[353607509,1739957088365,-1447.73,0.00014602,2]
[353607510,1739957088397,-500.0,0.00014602,2]
[353607511,1739957088431,-719.81,0.00014602,2]
[353607512,1739957088465,-500.0,0.00014602,2]
[353607513,1739957088499,-1285.19,0.00014602,2]
[353607514,1739957088531,-500.0,0.00014602,2]
[353607515,1739957088563,-500.0,0.00014602,2]
[353607516,1739957088595,-500.0,0.00014602,2]
[353607517,1739957088626,-2760.81,0.00014602,2]
[353607518,1739957088659,-500.0,0.00014602,2]
[353607519,1739957088693,-1429.12,0.00014602,2]
[353607520,1739957088726,-535.98,0.00014602,2]
[353607521,1739957088760,-1108.97,0.00014602,2]
[353607522,1739957088797,-560.79,0.00014602,2]
[353607523,1739957088833,-1725.34,0.00014602,2]
[353607524,1739957088872,-500.0,0.00014602,2]
[353607525,1739957088910,-583.25,0.00014602,2]
[353607526,1739957088950,-430.68912695,0.00014602,2]
[353607527,1739957088988,-778.14,0.00014602,2]
[353607528,1739957089023,-500.0,0.00014602,2]
[353607529,1739957089062,-500.0,0.00014602,2]
[353607530,1739957089099,-783.42,0.00014602,2]
[353607531,1739957089135,-2405.75,0.00014602,2]
[353607532,1739957089174,-5296.1,0.00014602,2]
[353607533,1739957089212,-2043.27,0.00014602,2]
[353607534,1739957089248,-1078.1,0.00014602,2]
[353607535,1739957089286,-1534.33,0.00014602,2]
[353607536,1739957089322,-500.0,0.00014602,2]
[353607537,1739957089359,-647.07,0.00014602,2]
[353607538,1739957089394,-528.47698692,0.00014602,2]
[353607539,1739957089428,-500.0,0.00014602,2]
[353607540,1739957089464,-738.28,0.00014602,2]
[353607541,1739957089500,-1051.18,0.00014602,2]
[353607542,1739957089536,-1093.24,0.00014602,2]
[353607543,1739957089569,-500.0,0.00014602,2]
[353607544,1739957089603,-1295.32,0.00014602,2]
[353607545,1739957089636,-2278.72,0.00014602,2]
[353607546,1739957089669,-1455.08,0.00014602,2]
[353607547,1739957089701,-500.0,0.00014602,2]
[353607548,1739957089734,-500.0,0.00014602,2]
[353607549,1739957089766,-572.16,0.00014602,2]
[353607550,1739957089798,-929.06,0.00014602,2]
[353607551,1739957089831,-1119.05,0.00014602,2]
[353607552,1739957089870,-967.27,0.00014602,2]
[353607553,1739957089907,-500.0,0.00014602,2]
[353607554,1739957089945,-500.0,0.00014602,2]
[353607555,1739957089981,-500.0,0.00014602,2]
[353607556,1739957090015,-770.13,0.00014602,2]
[353607557,1739957090049,-500.0,0.00014602,2]
[353607558,1739957090084,-4255.25,0.00014602,2]
[353607559,1739957090116,-500.0,0.00014602,2]
[353607560,1739957090150,-1120.64,0.00014602,2]
[353607561,1739957090183,-500.0,0.00014602,2]
[353607562,1739957090217,-500.0,0.00014602,2]
[353607563,1739957090250,-1021.92,0.00014602,2]
[353607564,1739957090283,-680.04,0.00014602,2]
[353607565,1739957090317,-500.0,0.00014602,2]
[353607566,1739957090352,-526.69568575,0.00014602,2]
[353607567,1739957090387,-1015.43,0.00014602,2]
[353607568,1739957090420,-500.0,0.00014602,2]
[353607569,1739957090455,-500.0,0.00014602,2]
[353607570,1739957090490,-909.24,0.00014602,2]
[353607571,1739957090526,-500.0,0.00014602,2]
[353607572,1739957090560,-152.297437,0.00014602,2]
[353607573,1739957090592,-500.0,0.00014602,2]
[353607574,1739957090626,-500.0,0.00014602,2]
[353607575,1739957090662,-1252.15,0.00014602,2]
[353607576,1739957090696,-500.0,0.00014602,2]
[353607577,1739957090729,-724.82,0.00014602,2]
[353607578,1739957090768,-604.92,0.00014602,2]
[353607579,1739957090805,-855.46,0.00014602,2]
[353607580,1739957090840,-155.81498,0.00014602,2]
[353607581,1739957090879,-500.0,0.00014602,2]
[353607582,1739957090920,-736.01,0.00014602,2]
[353607583,1739957090958,-1283.84,0.00014602,2]
[353607584,1739957090994,-500.0,0.00014602,2]
[353607585,1739957091035,-745.89,0.00014602,2]
[353607586,1739957091076,-1926.5,0.00014602,2]
[353607587,1739957091113,-1055.67,0.00014602,2]
[353607588,1739957091148,-627.81,0.00014602,2]
[353607589,1739957091183,-500.0,0.00014602,2]
[353607590,1739957091217,-776.57,0.00014602,2]
[353607591,1739957091249,-500.0,0.00014602,2]
[353607592,1739957091282,-733.08,0.00014602,2]
[353607593,1739957091316,-547.75,0.00014602,2]
[353607594,1739957091351,-500.0,0.00014602,2]
[353607595,1739957091388,-529.59,0.00014602,2]
[353607596,1739957091423,-4362.54,0.00014602,2]
[353607597,1739957091456,-500.0,0.00014602,2]
[353607598,1739957091488,-295.01706919,0.00014602,2]
[353607599,1739957091522,-500.0,0.00014602,2]
[353607600,1739957091554,-691.67,0.00014602,2]
[353607601,1739957091587,-580.48,0.00014602,2]
[353607602,1739957091619,-1333.98,0.00014602,2]
[353607603,1739957091656,-2090.9,0.00014602,2]
[353607604,1739957091688,-823.1,0.00014602,2]
[353607605,1739957091718,-733.25,0.00014602,2]
[353607606,1739957091749,-552.5,0.00014602,2]
[353607607,1739957091780,-1331.05,0.00014602,2]
[353607608,1739957091813,-151.678,0.00014624,2]
[353607609,1739957091845,-2025.0,0.00014624,2]
[353607610,1739957091877,-1786.0,0.00014624,2]
[353607611,1739957091908,-542.792,0.00014624,2]
[353607612,1739957091941,-1532.0,0.00014624,2]
[353607613,1739957091972,-1265.0,0.00014624,2]
[353607614,1739957092003,-908.0,0.00014624,2]
[353607615,1739957092034,-539.0,0.00014624,2]
[353607616,1739957092063,-3228.32,0.00014624,2]
[353607617,1739957092094,-150.0,0.00014624,2]
[353607618,1739957092127,-252.207,0.00014624,2]
[353607619,1739957092159,-8797.54,0.00014631,6]
[353607620,1739957092192,-671.74,0.00014631,6]
[353607621,1739957092224,-1250.93,0.00014631,6]
[353607622,1739957092256,-27251.5,0.00014631,6]
[353607623,1739957092288,-392.24343434,0.00014636,2]
[353607624,1739957092323,-1921.55,0.00014683,2]
[353607625,1739957092357,-500.0,0.00014684,2]
[353607626,1739957092391,-543.01,0.00014684,2]
[353607627,1739957092425,-634.82,0.00014684,2]
[353607628,1739957092467,-500.0,0.00014684,2]
[353607629,1739957092504,-541.04,0.00014684,2]
[353607630,1739957092538,-500.0,0.00014684,2]
[353607631,1739957092571,-725.34,0.00014684,2]
[353607632,1739957092604,-778.48,0.00014684,2]
[353607633,1739957092637,-549.58117208,0.00014684,2]
[353607634,1739957092670,-500.0,0.00014684,2]
[353607635,1739957092704,-633.81,0.00014684,2]
[353607636,1739957092737,-562.62,0.00014684,2]
[353607637,1739957092770,-844.44,0.00014684,2]
[353607638,1739957092804,-521.52024269,0.00014684,2]
[353607639,1739957092837,-500.0,0.00014684,2]
[353607640,1739957093160,-500.0,0.00014684,2]
[353607641,1739957093196,-722.42,0.00014684,2]
[353607642,1739957093230,-510.18,0.00014684,2]
[353607643,1739957093263,-650.55,0.00014684,2]
[353607644,1739957093296,-500.0,0.00014684,2]
[353607645,1739957093331,-500.0,0.00014684,2]
[353607646,1739957093365,-500.0,0.00014684,2]
[353607647,1739957093398,-1055.45,0.00014684,2]
[353607648,1739957093431,-438.34566164,0.00014684,2]
[353607649,1739957093464,-506.80240982,0.00014684,2]
[353607650,1739957093498,-691.51,0.00014684,2]
[353607651,1739957093532,-909.51,0.00014684,2]
[353607652,1739957093565,-500.0,0.00014684,2]
[353607653,1739957093601,-667.83,0.00014684,2]
[353607654,1739957093637,-500.0,0.00014684,2]
[353607655,1739957093672,-531.54,0.00014684,2]
[353607656,1739957093707,-647.18,0.00014684,2]
[353607657,1739957093741,-500.0,0.00014684,2]
[353607658,1739957093775,-500.0,0.00014684,2]
[353607659,1739957093810,-930.4,0.00014684,2]
[353607660,1739957093848,-500.0,0.00014684,2]
[353607661,1739957093885,-625.34,0.00014684,2]
[353607662,1739957093922,-515.28,0.00014684,2]
[353607663,1739957093958,-551.52,0.00014684,2]
[353607664,1739957093995,-500.0,0.00014684,2]
[353607665,1739957094028,-500.0,0.00014684,2]
[353607666,1739957094063,-770.16,0.00014684,2]
[353607667,1739957094099,-500.0,0.00014684,2]
[353607668,1739957094134,-500.0,0.00014684,2]
[353607669,1739957094168,-500.0,0.00014684,2]
[353607670,1739957094202,-500.0,0.00014684,2]
[353607671,1739957094234,-500.0,0.00014684,2]
[353607672,1739957094267,-512.49,0.00014684,2]
[353607673,1739957094303,-533.08,0.00014684,2]
[353607674,1739957094338,-628.45,0.00014684,2]
[353607675,1739957094374,-743.05,0.00014684,2]
[353607676,1739957094407,-500.0,0.00014684,2]
[353607677,1739957094443,-1540.98,0.00014684,2]
[353607678,1739957094477,-545.22,0.00014684,2]
[353607679,1739957094511,-807.24,0.00014684,2]